[Event "44th Chess Olympiad Women 2022"]
[Site "Chennai"]
[Date "2022.08.09"]
[Round "11.50"]
[White "Mazariegos, Silvia Carolina"]
[Black "Ben Said, Safa"]
[Result "1-0"]
[ECO "D02"]
[WhiteElo "1851"]
[BlackElo "1564"]
[Annotator "NA RC COMBH"]
[PlyCount "103"]
[EventDate "2022.07.29"]
[EventType "team-tourn"]
[EventCountry "IND"]
[SourceTitle "playchess.com"]
[Source "ChessBase"]
[SourceQuality "1"]
[WhiteTeam "Guatemala"]
[BlackTeam "Tunisia"]
[WhiteTeamCountry "GUA"]
[BlackTeamCountry "TUN"]
[TimeControl "40/5400+30:1800+30"]

1. d4 {[%emt 0:00:03]} Nf6 {[%emt 0:00:31]} 2. Bf4 {[%emt 0:00:08]} d5 {[%emt 0:00:40]} 3. e3 {[%emt 0:00:09]} c5 {[%emt 0:01:15]} 4. c3 {[%emt 0:00:40]} Qb6 {[%emt 0:02:20]} 5. Qc2 {[%emt 0:01:49]} Nc6 {[%emt 0:01:01]} 6. Nd2 {[%emt 0:01:40]} e6 {[%emt 0:02:13]} 7. Ngf3 {[%emt 0:01:51]} Bd7 {[%emt 0:01:49]} 8. h3 {[%emt 0:03:14]} Rc8 {[%emt 0:01:10]} 9. Rc1 {[%emt 0:01:12]} Na5 {[%emt 0:06:41]} 10. Qb1 {[%emt 0:02:57]} cxd4 {[%emt 0:07:06]} 11. exd4 {[%emt 0:07:39]} Bb5 {[%emt 0:03:56]} 12. g4 {[%emt 0:04:15]} Bxf1 {[%emt 0:08:08]} 13. Kxf1 {[%emt 0:02:20]} Qa6+ {[%emt 0:05:35]} 14. Kg2 {[%emt 0:00:26]} Nc4 {[%emt 0:01:13]} 15. Rhe1 {[%emt 0:03:26]} Bd6 {[%emt 0:04:04]} 16. Bxd6 {[%emt 0:01:41]} Qxd6 {[%emt 0:01:00]} 17. Nxc4 {[%emt 0:00:24]} Rxc4 {[%emt 0:03:33]} 18. Ne5 {[%emt 0:01:42]} Rc7 {[%emt 0:00:42]} 19. Re2 {[%emt 0:06:56]} O-O {[%emt 0:02:57]} 20. Rce1 {[%emt 0:05:28]} Ne4 {[%emt 0:08:31]} 21. f3 {[%emt 0:01:39]} f6 {[%emt 0:00:17]} 22. fxe4 {[%emt 0:04:18]} fxe5 {[%emt 0:00:23]} 23. dxe5 {[%emt 0:00:56]} Qxe5 {[%emt 0:03:30]} 24. exd5 {[%emt 0:05:54]} Qxd5+ {[%emt 0:00:39]} 25. Qe4 {[%emt 0:00:14]} Qxa2 {[%emt 0:01:07]} 26. Qxe6+ {[%emt 0:00:11]} Qxe6 {[%emt 0:00:19]} 27. Rxe6 {[%emt 0:00:09]} Rd8 {[%emt 0:01:53]} 28. Re8+ {[%emt 0:05:01]} Rxe8 {[%emt 0:00:45]} 29. Rxe8+ {[%emt 0:00:08]} Kf7 {[%emt 0:00:06]} 30. Rd8 {[%emt 0:01:36]} Ke6 {[%emt 0:04:05]} 31. Rh8 {[%emt 0:03:46]} h6 {[%emt 0:01:07]} 32. Ra8 {[%emt 0:01:52]} b6 {[%emt 0:02:54]} 33. h4 {[%emt 0:00:49]} Ke5 {[%emt 0:04:16]} 34. Rf8 {[%emt 0:03:25]} Ke4 {[%emt 0:02:48]} 35. Kg3 {[%emt 0:02:31]} Rd7 {[%emt 0:02:07]} 36. g5 {[%emt 0:01:33]} hxg5 {[%emt 0:02:30]} 37. hxg5 {[%emt 0:00:15]} Rd2 {[%emt 0:08:23]} 38. b4 {[%emt 0:07:03]} a5 {[%emt 0:04:28]} 39. bxa5 {[%emt 0:08:22]} bxa5 {[%emt 0:00:06]} 40. Kg4 {[%emt 0:02:29]} Rg2+ {[%emt 0:03:39]} 41. Kh5 {[%emt 0:30:22]} a4 {[%emt 0:04:43]} 42. Ra8 {[%emt 0:00:00]} Kd3 {[%emt 0:02:17]} 43. Rxa4 {[%emt 0:00:00]} Kxc3 {[%emt 0:00:05]} 44. Kg6 {[%emt 0:00:00]} Kd3 {[%emt 0:04:48]} 45. Ra5 {[%emt 0:00:00]} Ke4 {[%emt 0:02:14]} 46. Kxg7 {[%emt 0:00:00]} Rg1 {[%emt 0:01:09]} 47. g6 {[%emt 0:00:00]} Rh1 {[%emt 0:03:00]} 48. Kg8 {[%emt 0:00:00]} Rg1 {[%emt 0:02:22]} 49. g7 {[%emt 0:00:00]} Rb1 {[%emt 0:04:09]} 50. Rh5 {[%emt 0:00:00]} Kf4 {[%emt 0:03:02]} 51. Kh8 {[%emt 0:00:00]} Kg4 {[%emt 0:02:02]} 52. Rh7 {[%emt 0:00:00]} 1-0

[Event "44th Chess Olympiad Women 2022"]
[Site "Chennai"]
[Date "2022.08.09"]
[Round "11.50"]
[White "Natareno, Elvia"]
[Black "Hwass Zeineb"]
[Result "0-1"]
[ECO "D04"]
[WhiteElo "1581"]
[BlackElo "1386"]
[Annotator "NA RC COMBH"]
[PlyCount "64"]
[EventDate "2022.07.29"]
[EventType "team-tourn"]
[EventCountry "IND"]
[SourceTitle "playchess.com"]
[Source "ChessBase"]
[SourceQuality "1"]
[WhiteTeam "Guatemala"]
[BlackTeam "Tunisia"]
[WhiteTeamCountry "GUA"]
[BlackTeamCountry "TUN"]
[TimeControl "40/5400+30:1800+30"]

1. d4 {[%emt 0:00:35]} d5 {[%emt 0:00:05]} 2. Nf3 {[%emt 0:00:30]} Nf6 {[%emt 0:05:11]} 3. e3 {[%emt 0:00:53]} Bf5 {[%emt 0:00:05]} 4. b3 {[%emt 0:00:23]} e6 {[%emt 0:00:12]} 5. Bb2 {[%emt 0:00:09]} Bd6 {[%emt 0:00:53]} 6. Nc3 {[%emt 0:00:26]} c6 {[%emt 0:00:30]} 7. Bd3 {[%emt 0:00:20]} Bg6 {[%emt 0:00:58]} 8. Qe2 {[%emt 0:01:59]} Ne4 {[%emt 0:06:23]} 9. O-O {[%emt 0:04:58]} O-O {[%emt 0:01:05]} 10. Ne5 {[%emt 0:01:15]} f5 {[%emt 0:08:21]} 11. Nxg6 {[%emt 0:02:54]} hxg6 {[%emt 0:00:07]} 12. f3 {[%emt 0:00:42]} Nxc3 {[%emt 0:06:50]} 13. Bxc3 {[%emt 0:00:19]} Kf7 {[%emt 0:03:34]} 14. e4 {[%emt 0:00:11]} Rh8 {[%emt 0:01:30]} 15. e5 {[%emt 0:00:34]} Be7 {[%emt 0:00:35]} 16. f4 {[%emt 0:04:25]} Nd7 {[%emt 0:04:08]} 17. g4 {[%emt 0:10:42]} c5 {[%emt 0:02:50]} 18. gxf5 {[%emt 0:03:59]} gxf5 {[%emt 0:00:29]} 19. Rf3 {[%emt 0:13:49]} cxd4 {[%emt 0:03:06]} 20. Bxd4 {[%emt 0:00:12]} Nc5 {[%emt 0:00:12]} 21. Qg2 {[%emt 0:16:50]} Ne4 {[%emt 0:04:03]} 22. Re1 {[%emt 0:07:39]} Rh6 {[%emt 0:03:57]} 23. Kf1 {[%emt 0:04:59]} Rg6 {[%emt 0:04:59]} 24. Qe2 {[%emt 0:02:21]} Bb4 {[%emt 0:04:08]} 25. Rd1 {[%emt 0:01:38]} Qh4 {[%emt 0:04:28]} 26. Bxe4 {[%emt 0:01:06]} dxe4 {[%emt 0:00:39]} 27. Qb5 {[%emt 0:04:05]} exf3 {[%emt 0:04:45]} 28. Qxb7+ {[%emt 0:00:15]} Be7 {[%emt 0:00:11]} 29. Qxa8 {[%emt 0:02:03]} Qh3+ {[%emt 0:11:50]} 30. Ke1 {[%emt 0:01:36]} Qg2 {[%emt 0:04:04]} 31. Bf2 {[%emt 0:01:19]} Bb4+ {[%emt 0:00:20]} 32. Rd2 {[%emt 0:00:59]} Qh1+ {[%emt 0:00:19]} 0-1

[Event "44th Chess Olympiad Women 2022"]
[Site "Chennai"]
[Date "2022.08.09"]
[Round "11.50"]
[White "Meddeb, Chadha"]
[Black "Juarez Garcia, Daniela"]
[Result "1-0"]
[ECO "C45"]
[WhiteElo "1561"]
[BlackElo "1725"]
[Annotator "NA RC COMBH"]
[PlyCount "130"]
[EventDate "2022.07.29"]
[EventType "team-tourn"]
[EventCountry "IND"]
[SourceTitle "playchess.com"]
[Source "ChessBase"]
[SourceQuality "1"]
[WhiteTeam "Tunisia"]
[BlackTeam "Guatemala"]
[WhiteTeamCountry "TUN"]
[BlackTeamCountry "GUA"]
[TimeControl "40/5400+30:1800+30"]

1. e4 {[%emt 0:00:14]} e5 {[%emt 0:00:01]} 2. Nf3 {[%emt 0:00:15]} Nc6 {[%emt 0:00:06]} 3. d4 {[%emt 0:00:09]} exd4 {[%emt 0:00:39]} 4. Nxd4 {[%emt 0:00:03]} Bc5 {[%emt 0:00:22]} 5. Be3 {[%emt 0:00:09]} Qh4 {[%emt 0:06:37]} 6. Nc3 {[%emt 0:06:42]} d6 {[%emt 0:03:06]} 7. Qd2 {[%emt 0:16:11]} Bg4 {[%emt 0:05:54]} 8. Nd5 {[%emt 0:10:22]} Rc8 {[%emt 0:35:14]} 9. Bb5 {[%emt 0:18:26]} Bd7 {[%emt 0:14:57]} 10. Bxc6 {[%emt 0:09:31]} bxc6 {[%emt 0:01:42]} 11. Nc3 {[%emt 0:03:23]} Nf6 {[%emt 0:02:30]} 12. Nf3 {[%emt 0:15:07]} Qh5 {[%emt 0:06:20]} 13. h3 {[%emt 0:03:03]} O-O {[%emt 0:02:05]} 14. Bxc5 {[%emt 0:01:23]} Qxc5 {[%emt 0:00:09]} 15. O-O {[%emt 0:01:04]} Be6 {[%emt 0:03:12]} 16. Rfe1 {[%emt 0:01:09]} Rcd8 {[%emt 0:02:51]} 17. Qd4 {[%emt 0:02:18]} Qh5 {[%emt 0:01:45]} 18. Qe3 {[%emt 0:01:38]} c5 {[%emt 0:00:33]} 19. Rad1 {[%emt 0:02:26]} c6 {[%emt 0:01:45]} 20. Qg5 {[%emt 0:01:32]} Rd7 {[%emt 0:02:59]} 21. Re2 {[%emt 0:04:52]} Rfd8 {[%emt 0:04:55]} 22. Red2 {[%emt 0:00:09]} Qxg5 {[%emt 0:01:25]} 23. Nxg5 {[%emt 0:00:01]} h6 {[%emt 0:00:37]} 24. Nf3 {[%emt 0:00:22]} Rb8 {[%emt 0:00:34]} 25. b3 {[%emt 0:00:50]} c4 {[%emt 0:01:23]} 26. Rxd6 {[%emt 0:00:10]} cxb3 {[%emt 0:00:50]} 27. axb3 {[%emt 0:00:06]} Rxd6 {[%emt 0:00:48]} 28. Rxd6 {[%emt 0:00:00]} c5 {[%emt 0:00:11]} 29. Ra6 {[%emt 0:01:10]} Rb7 {[%emt 0:00:17]} 30. Ne5 {[%emt 0:00:15]} Rb4 {[%emt 0:00:52]} 31. f3 {[%emt 0:00:17]} c4 {[%emt 0:00:22]} 32. bxc4 {[%emt 0:02:16]} Bxc4 {[%emt 0:00:05]} 33. Rxa7 {[%emt 0:00:10]} Be6 {[%emt 0:00:30]} 34. Rc7 {[%emt 0:00:19]} Ne8 {[%emt 0:00:21]} 35. Rc5 {[%emt 0:00:32]} Kf8 {[%emt 0:00:45]} 36. Kf2 {[%emt 0:00:10]} Ke7 {[%emt 0:00:04]} 37. Nc6+ {[%emt 0:00:02]} Kd6 {[%emt 0:00:08]} 38. Nxb4 {[%emt 0:01:14]} Kxc5 {[%emt 0:00:04]} 39. Nd3+ {[%emt 0:00:18]} Kc4 {[%emt 0:00:53]} 40. Ne2 {[%emt 0:00:08]} Nd6 {[%emt 0:00:08]} 41. Ke3 {[%emt 0:30:45]} Nb5 {[%emt 0:30:29]} 42. Ne5+ {[%emt 0:00:40]} Kc5 {[%emt 0:00:49]} 43. Kd2 {[%emt 0:00:00]} Nd4 {[%emt 0:00:00]} 44. Nf4 {[%emt 0:00:00]} Ba2 {[%emt 0:00:00]} 45. Kc3 {[%emt 0:00:00]} Nb5+ {[%emt 0:00:00]} 46. Kb2 {[%emt 0:00:00]} Bc4 {[%emt 0:00:00]} 47. Nxc4 {[%emt 0:00:00]} Kxc4 {[%emt 0:00:00]} 48. Ne2 {[%emt 0:00:00]} g5 {[%emt 0:00:00]} 49. Kc1 {[%emt 0:00:00]} f6 {[%emt 0:00:00]} 50. Kd2 {[%emt 0:00:00]} Nd6 {[%emt 0:00:00]} 51. Ng3 {[%emt 0:00:00]} Kd4 {[%emt 0:00:00]} 52. Nf5+ {[%emt 0:00:00]} Nxf5 {[%emt 0:00:00]} 53. exf5 {[%emt 0:00:00]} h5 {[%emt 0:00:00]} 54. g3 {[%emt 0:00:00]} Kc4 {[%emt 0:00:00]} 55. c3 {[%emt 0:00:00]} h4 {[%emt 0:00:00]} 56. gxh4 {[%emt 0:00:00]} gxh4 {[%emt 0:00:00]} 57. f4 {[%emt 0:00:00]} Kc5 {[%emt 0:00:00]} 58. Kd3 {[%emt 0:00:00]} Kd5 {[%emt 0:00:00]} 59. c4+ {[%emt 0:00:00]} Kc5 {[%emt 0:00:00]} 60. Kc3 {[%emt 0:00:00]} Kc6 {[%emt 0:00:00]} 61. Kd4 {[%emt 0:00:00]} Kd6 {[%emt 0:00:00]} 62. c5+ {[%emt 0:00:00]} Kc6 {[%emt 0:00:00]} 63. Kc4 {[%emt 0:00:00]} Kc7 {[%emt 0:00:00]} 64. Kd5 {[%emt 0:00:00]} Kd7 {[%emt 0:00:00]} 65. c6+ {[%emt 0:00:00]} Kc7 {[%emt 0:00:00]} 1-0

[Event "44th Chess Olympiad Women 2022"]
[Site "Chennai"]
[Date "2022.08.09"]
[Round "11.50"]
[White "Mefteh, Meyssem"]
[Black "Lopez L., Dairyn D."]
[Result "0-1"]
[ECO "B06"]
[WhiteElo "1254"]
[BlackElo "1574"]
[Annotator "NA RC COMBH"]
[PlyCount "82"]
[EventDate "2022.07.29"]
[EventType "team-tourn"]
[EventCountry "IND"]
[SourceTitle "playchess.com"]
[Source "ChessBase"]
[SourceQuality "1"]
[WhiteTeam "Tunisia"]
[BlackTeam "Guatemala"]
[WhiteTeamCountry "TUN"]
[BlackTeamCountry "GUA"]
[TimeControl "40/5400+30:1800+30"]

1. e4 {[%emt 0:00:01]} g6 {[%emt 0:00:07]} 2. d4 {[%emt 0:00:17]} Bg7 {[%emt 0:00:12]} 3. Nc3 {[%emt 0:00:08]} d6 {[%emt 0:00:07]} 4. f4 {[%emt 0:00:21]} h5 {[%emt 0:00:49]} 5. h3 {[%emt 0:01:19]} e5 {[%emt 0:17:40]} 6. Nf3 {[%emt 0:42:00]} exd4 {[%emt 0:00:00]} 7. Nb5 {[%emt 0:02:05]} Nc6 {[%emt 0:00:00]} 8. Bc4 {[%emt 0:06:58]} a6 {[%emt 0:00:00]} 9. Nbxd4 {[%emt 0:01:16]} Nxd4 {[%emt 0:00:00]} 10. Nxd4 {[%emt 0:00:06]} Qh4+ {[%emt 0:00:00]} 11. Kf1 {[%emt 0:00:06]} Nh6 {[%emt 0:00:00]} 12. Nf3 {[%emt 0:01:07]} Qe7 {[%emt 0:00:00]} 13. Kf2 {[%emt 0:02:09]} O-O {[%emt 0:02:13]} 14. Re1 {[%emt 0:00:43]} c6 {[%emt 0:02:20]} 15. Bb3 {[%emt 0:03:11]} b5 {[%emt 0:03:46]} 16. a4 {[%emt 0:01:23]} Be6 {[%emt 0:07:21]} 17. c3 {[%emt 0:05:28]} Bxb3 {[%emt 0:02:12]} 18. Qxb3 {[%emt 0:00:07]} Rae8 {[%emt 0:05:04]} 19. axb5 {[%emt 0:06:18]} axb5 {[%emt 0:02:10]} 20. Bd2 {[%emt 0:00:11]} Qb7 {[%emt 0:03:45]} 21. Qc2 {[%emt 0:02:47]} c5 {[%emt 0:01:37]} 22. Qd3 {[%emt 0:03:04]} Rd8 {[%emt 0:12:58]} 23. Ra5 {[%emt 0:10:15]} c4 {[%emt 0:06:49]} 24. Qe3 {[%emt 0:00:06]} Rfe8 {[%emt 0:01:14]} 25. Nd4 {[%emt 0:05:38]} f5 {[%emt 0:10:03]} 26. Rxb5 {[%emt 0:01:56]} Qd7 {[%emt 0:00:09]} 27. Rd5 {[%emt 0:00:42]} Rxe4 {[%emt 0:03:28]} 28. Qg3 {[%emt 0:01:10]} Rxe1 {[%emt 0:03:38]} 29. Bxe1 {[%emt 0:00:23]} Kh7 {[%emt 0:00:05]} 30. Qe3 {[%emt 0:01:12]} Re8 {[%emt 0:00:21]} 31. Qd2 {[%emt 0:00:45]} Re4 {[%emt 0:01:53]} 32. Kg1 {[%emt 0:01:38]} Nf7 {[%emt 0:00:58]} 33. Nf3 {[%emt 0:00:33]} Qa7+ {[%emt 0:01:14]} 34. Kh2 {[%emt 0:00:43]} Bh6 {[%emt 0:01:21]} 35. Bg3 {[%emt 0:00:53]} Qe7 {[%emt 0:01:13]} 36. Ng5+ {[%emt 0:00:58]} Bxg5 {[%emt 0:02:01]} 37. fxg5 {[%emt 0:00:15]} Re2 {[%emt 0:01:56]} 38. Qd4 {[%emt 0:00:40]} Rxb2 {[%emt 0:01:24]} 39. Qf6 {[%emt 0:00:23]} Qb7 {[%emt 0:01:19]} 40. Qe6 {[%emt 0:00:32]} Nxg5 {[%emt 0:05:18]} 41. h4 {[%emt 0:30:35]} Nxe6 {[%emt 0:30:09]} 0-1

[Event "44th Chess Olympiad Women 2022"]
[Site "Chennai"]
[Date "2022.08.09"]
[Round "11.51"]
[White "Lyons, Kieran"]
[Black "Smith, Olivia"]
[Result "0-1"]
[ECO "C42"]
[WhiteElo "1767"]
[BlackElo "2038"]
[Annotator "NA RC"]
[PlyCount "86"]
[EventDate "2022.07.29"]
[EventType "team-tourn"]
[EventCountry "IND"]
[SourceTitle "playchess.com"]
[Source "ChessBase"]
[SourceQuality "1"]
[WhiteTeam "Fiji"]
[BlackTeam "Wales"]
[WhiteTeamCountry "FIJ"]
[BlackTeamCountry "WLS"]
[TimeControl "40/5400+30:1800+30"]

1. e4 {[%emt 0:00:03]} e5 {[%emt 0:00:05]} 2. Nf3 {[%emt 0:00:04]} Nf6 {[%emt 0:00:03]} 3. Nxe5 {[%emt 0:00:06]} d6 {[%emt 0:00:06]} 4. Nf3 {[%emt 0:00:10]} Nxe4 {[%emt 0:00:05]} 5. Bb5+ {[%emt 0:00:23]} c6 {[%emt 0:01:19]} 6. Ba4 {[%emt 0:00:27]} Be7 {[%emt 0:00:55]} 7. O-O {[%emt 0:00:37]} O-O {[%emt 0:00:25]} 8. Re1 {[%emt 0:00:33]} d5 {[%emt 0:01:46]} 9. d3 {[%emt 0:00:23]} Nc5 {[%emt 0:01:19]} 10. c3 {[%emt 0:01:40]} Nxa4 {[%emt 0:01:30]} 11. Qxa4 {[%emt 0:00:20]} Nd7 {[%emt 0:00:44]} 12. Nbd2 {[%emt 0:01:17]} Nc5 {[%emt 0:01:05]} 13. Qc2 {[%emt 0:03:24]} Bf5 {[%emt 0:01:22]} 14. Re3 {[%emt 0:00:19]} a5 {[%emt 0:02:02]} 15. Nb3 {[%emt 0:10:24]} a4 {[%emt 0:03:00]} 16. Nbd4 {[%emt 0:00:17]} Bg6 {[%emt 0:01:33]} 17. Ne5 {[%emt 0:02:31]} Bd6 {[%emt 0:01:12]} 18. Nxg6 {[%emt 0:02:29]} fxg6 {[%emt 0:00:32]} 19. Bd2 {[%emt 0:06:22]} Qh4 {[%emt 0:08:15]} 20. g3 {[%emt 0:02:38]} Qg4 {[%emt 0:04:57]} 21. Qd1 {[%emt 0:04:08]} Qd7 {[%emt 0:01:13]} 22. Qe2 {[%emt 0:04:37]} Rf6 {[%emt 0:01:02]} 23. Kg2 {[%emt 0:04:48]} Raf8 {[%emt 0:00:46]} 24. Rf1 {[%emt 0:00:31]} h6 {[%emt 0:01:50]} 25. b3 {[%emt 0:06:22]} Qf7 {[%emt 0:04:39]} 26. b4 {[%emt 0:04:50]} Nd7 {[%emt 0:01:12]} 27. Re6 {[%emt 0:01:54]} Be5 {[%emt 0:09:01]} 28. Rxf6 {[%emt 0:00:57]} Qxf6 {[%emt 0:01:17]} 29. Qf3 {[%emt 0:02:14]} Bxd4 {[%emt 0:00:27]} 30. Qxf6 {[%emt 0:01:01]} Bxf6 {[%emt 0:00:04]} 31. d4 {[%emt 0:01:21]} Bg5 {[%emt 0:00:58]} 32. f4 {[%emt 0:00:11]} Bd8 {[%emt 0:00:43]} 33. Re1 {[%emt 0:01:23]} Nf6 {[%emt 0:00:19]} 34. Re2 {[%emt 0:01:05]} Re8 {[%emt 0:00:50]} 35. Rxe8+ {[%emt 0:03:50]} Nxe8 {[%emt 0:00:04]} 36. Kf3 {[%emt 0:00:06]} Nd6 {[%emt 0:00:20]} 37. h4 {[%emt 0:01:51]} Kf7 {[%emt 0:00:32]} 38. Kg4 {[%emt 0:01:07]} Ke6 {[%emt 0:01:01]} 39. Kf3 {[%emt 0:00:52]} Ne4 {[%emt 0:00:23]} 40. Be1 {[%emt 0:00:24]} g5 {[%emt 0:00:12]} 41. hxg5 {[%emt 0:30:35]} hxg5 {[%emt 0:30:06]} 42. a3 {[%emt 0:02:02]} gxf4 {[%emt 0:00:27]} 43. Kxf4 {[%emt 0:00:07]} Bg5+ {[%emt 0:00:10]} 0-1

[Event "44th Chess Olympiad Women 2022"]
[Site "Chennai"]
[Date "2022.08.09"]
[Round "11.51"]
[White "Chong, Kimberly"]
[Black "Sewak, Aarti"]
[Result "1-0"]
[ECO "C50"]
[WhiteElo "1741"]
[BlackElo "1412"]
[Annotator "NA RC COMBH"]
[PlyCount "83"]
[EventDate "2022.07.29"]
[EventType "team-tourn"]
[EventCountry "IND"]
[SourceTitle "playchess.com"]
[Source "ChessBase"]
[SourceQuality "1"]
[WhiteTeam "Wales"]
[BlackTeam "Fiji"]
[WhiteTeamCountry "WLS"]
[BlackTeamCountry "FIJ"]
[TimeControl "40/5400+30:1800+30"]

1. e4 {[%emt 0:00:03]} e5 {[%emt 0:00:04]} 2. Nf3 {[%emt 0:00:05]} Nc6 {[%emt 0:00:24]} 3. Bc4 {[%emt 0:00:15]} d6 {[%emt 0:00:39]} 4. c3 {[%emt 0:04:34]} Bg4 {[%emt 0:00:20]} 5. d3 {[%emt 0:00:09]} Be7 {[%emt 0:00:22]} 6. Nbd2 {[%emt 0:00:34]} h6 {[%emt 0:02:43]} 7. h3 {[%emt 0:01:11]} Bd7 {[%emt 0:00:36]} 8. b4 {[%emt 0:01:09]} a6 {[%emt 0:00:48]} 9. Qb3 {[%emt 0:00:11]} Bf6 {[%emt 0:06:10]} 10. Bxf7+ {[%emt 0:00:37]} Kf8 {[%emt 0:00:19]} 11. Bg6 {[%emt 0:11:40]} Qe7 {[%emt 0:00:29]} 12. Qc2 {[%emt 0:11:43]} Be6 {[%emt 0:01:39]} 13. O-O {[%emt 0:02:59]} Qd7 {[%emt 0:00:46]} 14. Bf5 {[%emt 0:06:12]} Bxf5 {[%emt 0:06:07]} 15. exf5 {[%emt 0:00:04]} Qxf5 {[%emt 0:00:20]} 16. Ne4 {[%emt 0:02:38]} Be7 {[%emt 0:02:57]} 17. Ng3 {[%emt 0:03:14]} Qg6 {[%emt 0:05:23]} 18. Re1 {[%emt 0:05:59]} Bf6 {[%emt 0:01:30]} 19. Re4 {[%emt 0:08:00]} Nge7 {[%emt 0:01:34]} 20. Rg4 {[%emt 0:08:54]} Qf7 {[%emt 0:00:27]} 21. Ne4 {[%emt 0:08:28]} Nf5 {[%emt 0:04:49]} 22. Nxf6 {[%emt 0:02:39]} Qxf6 {[%emt 0:01:18]} 23. d4 {[%emt 0:01:35]} Re8 {[%emt 0:01:32]} 24. Re4 {[%emt 0:04:05]} d5 {[%emt 0:04:29]} 25. dxe5 {[%emt 0:00:21]} Nxe5 {[%emt 0:00:19]} 26. Rf4 {[%emt 0:00:30]} Nxf3+ {[%emt 0:01:02]} 27. Rxf3 {[%emt 0:00:14]} Re1+ {[%emt 0:02:25]} 28. Kh2 {[%emt 0:00:03]} g6 {[%emt 0:00:57]} 29. g4 {[%emt 0:05:35]} Kg8 {[%emt 0:03:46]} 30. gxf5 {[%emt 0:01:00]} g5 {[%emt 0:00:21]} 31. Bxg5 {[%emt 0:00:14]} hxg5 {[%emt 0:01:30]} 32. Rxe1 {[%emt 0:00:18]} Qd6+ {[%emt 0:02:19]} 33. Kg2 {[%emt 0:00:30]} Kf7 {[%emt 0:04:21]} 34. Rfe3 {[%emt 0:01:03]} Rd8 {[%emt 0:03:00]} 35. Re7+ {[%emt 0:01:55]} Qxe7 {[%emt 0:05:05]} 36. Rxe7+ {[%emt 0:00:06]} Kxe7 {[%emt 0:00:12]} 37. Qe2+ {[%emt 0:00:12]} Kf8 {[%emt 0:00:57]} 38. Qh5 {[%emt 0:00:50]} Rd6 {[%emt 0:01:25]} 39. Qxg5 {[%emt 0:00:32]} Kf7 {[%emt 0:00:54]} 40. h4 {[%emt 0:00:48]} Kf8 {[%emt 0:02:03]} 41. h5 {[%emt 0:30:48]} Rd7 {[%emt 0:31:21]} 42. f6 {[%emt 0:00:37]} 1-0

[Event "44th Chess Olympiad Women 2022"]
[Site "Chennai"]
[Date "2022.08.09"]
[Round "11.51"]
[White "Terubea, Cydel"]
[Black "Ray, Hiya"]
[Result "1-0"]
[ECO "B34"]
[WhiteElo "1450"]
[BlackElo "1586"]
[Annotator "NA COMBH"]
[PlyCount "69"]
[EventDate "2022.07.29"]
[EventType "team-tourn"]
[EventCountry "IND"]
[SourceTitle "playchess.com"]
[Source "ChessBase"]
[SourceQuality "1"]
[WhiteTeam "Fiji"]
[BlackTeam "Wales"]
[WhiteTeamCountry "FIJ"]
[BlackTeamCountry "WLS"]
[TimeControl "40/5400+30:1800+30"]

1. e4 {[%emt 0:00:09]} c5 {[%emt 0:00:07]} 2. Nf3 {[%emt 0:00:07]} Nc6 {[%emt 0:00:06]} 3. d4 {[%emt 0:00:35]} cxd4 {[%emt 0:00:09]} 4. Nxd4 {[%emt 0:00:07]} g6 {[%emt 0:00:04]} 5. Nxc6 {[%emt 0:03:31]} bxc6 {[%emt 0:00:12]} 6. Bd3 {[%emt 0:00:25]} Bg7 {[%emt 0:00:31]} 7. c3 {[%emt 0:02:02]} d6 {[%emt 0:04:06]} 8. Nd2 {[%emt 0:01:54]} Nf6 {[%emt 0:00:45]} 9. h3 {[%emt 0:00:08]} O-O {[%emt 0:00:42]} 10. O-O {[%emt 0:00:09]} Nd7 {[%emt 0:02:22]} 11. Nf3 {[%emt 0:03:12]} Nc5 {[%emt 0:01:04]} 12. Bc2 {[%emt 0:00:18]} Qb6 {[%emt 0:03:53]} 13. Nd4 {[%emt 0:01:44]} a5 {[%emt 0:05:41]} 14. b3 {[%emt 0:03:47]} Ne6 {[%emt 0:02:29]} 15. Be3 {[%emt 0:00:48]} c5 {[%emt 0:02:08]} 16. Nxe6 {[%emt 0:02:14]} Bxe6 {[%emt 0:00:42]} 17. Qd2 {[%emt 0:00:18]} Rfd8 {[%emt 0:02:00]} 18. Rad1 {[%emt 0:05:08]} d5 {[%emt 0:01:54]} 19. exd5 {[%emt 0:02:42]} Bxd5 {[%emt 0:00:27]} 20. Qe1 {[%emt 0:00:48]} Qc6 {[%emt 0:01:29]} 21. f3 {[%emt 0:00:14]} c4 {[%emt 0:03:09]} 22. Bd4 {[%emt 0:02:41]} e5 {[%emt 0:07:53]} 23. Be3 {[%emt 0:03:35]} Rac8 {[%emt 0:02:31]} 24. Bd2 {[%emt 0:04:27]} f5 {[%emt 0:05:22]} 25. Bg5 {[%emt 0:05:11]} Bf6 {[%emt 0:02:48]} 26. Qh4 {[%emt 0:01:00]} Bxg5 {[%emt 0:01:57]} 27. Qxg5 {[%emt 0:00:07]} Re8 {[%emt 0:04:07]} 28. Bxf5 {[%emt 0:00:35]} Be6 {[%emt 0:01:37]} 29. Be4 {[%emt 0:02:26]} Qc5+ {[%emt 0:02:09]} 30. Kh1 {[%emt 0:00:29]} cxb3 {[%emt 0:01:15]} 31. axb3 {[%emt 0:00:08]} Bxb3 {[%emt 0:01:11]} 32. Rd7 {[%emt 0:01:02]} Be6 {[%emt 0:06:09]} 33. Rxh7 {[%emt 0:00:53]} Rc7 {[%emt 0:02:29]} 34. Qxg6+ {[%emt 0:00:12]} Kf8 {[%emt 0:00:14]} 35. Qf6+ {[%emt 0:01:27]} 1-0

[Event "44th Chess Olympiad Women 2022"]
[Site "Chennai"]
[Date "2022.08.09"]
[Round "11.51"]
[White "Bagga, Khushi"]
[Black "Prasad, Tanvi"]
[Result "1-0"]
[ECO "C42"]
[WhiteElo "1328"]
[BlackElo "1165"]
[Annotator "NA RC COMBH"]
[PlyCount "67"]
[EventDate "2022.07.29"]
[EventType "team-tourn"]
[EventCountry "IND"]
[SourceTitle "playchess.com"]
[Source "ChessBase"]
[SourceQuality "1"]
[WhiteTeam "Wales"]
[BlackTeam "Fiji"]
[WhiteTeamCountry "WLS"]
[BlackTeamCountry "FIJ"]
[TimeControl "40/5400+30:1800+30"]

1. e4 {[%emt 0:00:01]} e5 {[%emt 0:00:05]} 2. Nf3 {[%emt 0:00:04]} Nf6 {[%emt 0:00:05]} 3. Nxe5 {[%emt 0:00:10]} d6 {[%emt 0:00:08]} 4. Nf3 {[%emt 0:00:16]} Nxe4 {[%emt 0:00:15]} 5. d3 {[%emt 0:00:16]} Nf6 {[%emt 0:00:06]} 6. Be2 {[%emt 0:00:16]} Be7 {[%emt 0:00:11]} 7. Nc3 {[%emt 0:00:16]} Nc6 {[%emt 0:00:06]} 8. O-O {[%emt 0:00:34]} O-O {[%emt 0:00:23]} 9. d4 {[%emt 0:01:00]} d5 {[%emt 0:00:30]} 10. Ne5 {[%emt 0:05:24]} Nxe5 {[%emt 0:03:32]} 11. dxe5 {[%emt 0:00:25]} Ne8 {[%emt 0:00:45]} 12. Nxd5 {[%emt 0:09:16]} c6 {[%emt 0:01:00]} 13. Nxe7+ {[%emt 0:02:00]} Qxe7 {[%emt 0:00:28]} 14. f4 {[%emt 0:01:41]} Bf5 {[%emt 0:01:47]} 15. Be3 {[%emt 0:08:40]} Nc7 {[%emt 0:02:03]} 16. Bc4 {[%emt 0:06:41]} Rfd8 {[%emt 0:04:04]} 17. Qe2 {[%emt 0:06:04]} Nd5 {[%emt 0:05:27]} 18. Bxd5 {[%emt 0:04:06]} Rxd5 {[%emt 0:01:05]} 19. Qf2 {[%emt 0:07:14]} b6 {[%emt 0:04:24]} 20. Bd4 {[%emt 0:05:49]} Qb4 {[%emt 0:04:11]} 21. c3 {[%emt 0:04:31]} Qe7 {[%emt 0:07:21]} 22. c4 {[%emt 0:01:44]} Rd7 {[%emt 0:01:36]} 23. Be3 {[%emt 0:01:41]} Rad8 {[%emt 0:03:39]} 24. Qf3 {[%emt 0:02:27]} Qe6 {[%emt 0:03:30]} 25. b3 {[%emt 0:00:42]} Bg4 {[%emt 0:03:18]} 26. Qf2 {[%emt 0:02:42]} Bf5 {[%emt 0:06:44]} 27. Rfe1 {[%emt 0:02:24]} Rd3 {[%emt 0:04:01]} 28. Rf1 {[%emt 0:09:47]} f6 {[%emt 0:04:43]} 29. Rae1 {[%emt 0:02:03]} fxe5 {[%emt 0:03:16]} 30. fxe5 {[%emt 0:05:09]} g6 {[%emt 0:01:19]} 31. Bg5 {[%emt 0:01:47]} R8d4 {[%emt 0:04:06]} 32. Be3 {[%emt 0:04:58]} Rd7 {[%emt 0:05:02]} 33. g4 {[%emt 0:02:34]} Bxg4 {[%emt 0:02:47]} 34. Qf8# {[%emt 0:00:43]} 1-0